lending/lending_fUSD_20251022
["ID","MTS","AMOUNT","RATE_DAILY","PERIOD"]
[392063895,1761135049166,-500.0,0.00043835,120]
[392063896,1761135049175,-483.19503796,0.00043835,120]
[392063897,1761135049184,-272.23402845,0.00043835,120]
[392063898,1761135049193,-504.74009552,0.00043835,120]
[392063899,1761135049203,-602.48775625,0.00043835,120]
[392063900,1761135049212,-500.0,0.00043835,120]
[392063901,1761135049222,-500.0,0.00043835,120]
[392063902,1761135049231,-502.12156821,0.00043835,120]
[392063903,1761135049241,-500.0,0.00043835,120]
[392063904,1761135049250,-500.0,0.00043835,120]
[392063905,1761135049260,-501.70250831,0.00043835,120]
[392063906,1761135049269,-503.07825965,0.00043835,120]
[392063907,1761135049279,-500.0,0.00043835,120]
[392063908,1761135049290,-500.0,0.00043835,120]
[392063909,1761135049300,-500.0,0.00043835,120]
[392063910,1761135049310,-501.61404296,0.00043835,120]
[392063911,1761135049319,-500.0,0.00043835,120]
[392063912,1761135049328,-848.95,0.00043835,120]
[392063913,1761135049337,-500.0,0.00043835,120]
[392063914,1761135049347,-431.12211751,0.00043835,120]
[392063915,1761135049356,-521.48788849,0.00043835,120]
[392063916,1761135049365,-163.30685073,0.00043835,120]
[392063917,1761135049375,-508.45750766,0.00043835,120]
[392063918,1761135049385,-438.06893653,0.00043835,120]
[392063919,1761135049394,-505.71841019,0.00043835,120]
[392063920,1761135049403,-500.0,0.00043835,120]
[392063921,1761135049412,-516.18661238,0.00043835,120]
[392063922,1761135049422,-500.0,0.00043835,120]
[392063923,1761135049431,-500.0,0.00043835,120]
[392063924,1761135049440,-500.0,0.00043835,120]
[392063925,1761135049449,-500.0,0.00043835,120]
[392063926,1761135049459,-500.0,0.00043835,120]
[392063927,1761135049468,-509.93822975,0.00043835,120]
[392063928,1761135049478,-529.6903537,0.00043835,120]
[392063929,1761135049488,-500.0,0.00043835,120]
[392063930,1761135049497,-503.75634328,0.00043835,120]
[392063931,1761135049508,-506.70772373,0.00043835,120]
[392063932,1761135049519,-398.03571757,0.00043835,120]
[392063933,1761135049529,-500.0,0.00043835,120]
[392063934,1761135049540,-500.0,0.00043835,120]
[392063935,1761135049550,-644.62318315,0.00043835,120]
[392063936,1761135049560,-500.0,0.00043835,120]
[392063937,1761135049571,-500.0,0.00043835,120]
[392063938,1761135049580,-503.01710578,0.00043835,120]
[392063939,1761135049589,-299.0,0.00043835,120]
[392063940,1761135049599,-500.0,0.00043835,120]
[392063941,1761135049608,-500.0,0.00043835,120]
[392063942,1761135049617,-500.0,0.00043835,120]
[392063943,1761135049627,-500.0,0.00043835,120]
[392063944,1761135049636,-507.79481713,0.00043835,120]
[392063945,1761135049645,-500.0,0.00043835,120]
[392063946,1761135049655,-533.0498603,0.00043835,120]
[392063947,1761135049664,-500.0,0.00043835,120]
[392063948,1761135049674,-500.39604025,0.00043835,30]
[392063949,1761135049683,-514.17189411,0.00043835,120]
[392063950,1761135049692,-525.62555034,0.00043835,120]
[392063951,1761135049702,-1111.81,0.00043835,120]
[392063952,1761135049711,-509.23204148,0.00043835,120]
[392063953,1761135049720,-500.0,0.00043835,120]
[392063954,1761135049730,-500.0,0.00043835,120]
[392063955,1761135049739,-513.01527982,0.00043835,120]
[392063956,1761135049748,-509.94159169,0.00043835,120]
[392063957,1761135049757,-500.0,0.00043835,120]
[392063958,1761135049766,-507.30692384,0.00043835,120]
[392063959,1761135049775,-575.63702773,0.00043835,120]
[392063960,1761135049785,-500.0,0.00043835,120]
[392063961,1761135049795,-522.11307165,0.00043835,120]
[392063962,1761135049805,-503.83499522,0.00043835,120]
[392063963,1761135049815,-572.42,0.00043835,120]
[392063964,1761135049825,-505.25913195,0.00043835,120]
[392063965,1761135049835,-500.0,0.00043835,120]
[392063966,1761135049845,-167.783265,0.00043835,120]
[392063967,1761135049854,-512.76701313,0.00043835,120]
[392063968,1761135049863,-500.0,0.00043835,120]
[392063969,1761135049872,-519.35572878,0.00043835,120]
[392063970,1761135049882,-500.0,0.00043835,120]
[392063971,1761135049891,-506.75408006,0.00043835,120]
[392063972,1761135049901,-500.0,0.00043835,120]
[392063973,1761135049915,-500.0,0.00043835,120]
[392063974,1761135049926,-951.22,0.00043835,120]
[392063975,1761135049936,-166.37982749,0.00043835,120]
[392063976,1761135049946,-507.39764129,0.00043835,120]
[392063977,1761135049955,-536.46471441,0.00043835,120]
[392063978,1761135049964,-500.0,0.00043835,120]
[392063979,1761135049974,-502.97909191,0.00043835,120]
[392063980,1761135049984,-615.86894597,0.00043835,120]
[392063981,1761135049993,-500.0,0.00043835,120]
[392063982,1761135050003,-509.03478834,0.00043835,120]
[392063983,1761135050012,-529.67374856,0.00043835,120]
[392063984,1761135050022,-500.0,0.00043835,120]
[392063985,1761135050031,-500.0,0.00043835,120]
[392063986,1761135050040,-500.0,0.00043835,120]
[392063987,1761135050049,-500.0,0.00043835,120]
[392063988,1761135050059,-500.0,0.00043835,120]
[392063989,1761135050068,-505.00796978,0.00043835,120]
[392063990,1761135050076,-550.98193623,0.00043835,120]
[392063991,1761135050086,-677.6,0.00043835,30]
[392063992,1761135050095,-513.52783775,0.00043835,120]
[392063993,1761135050105,-500.0,0.00043835,120]
[392063994,1761135050114,-533.42442626,0.00043835,120]
[392063995,1761135050123,-503.9131997,0.00043835,120]
[392063996,1761135050132,-503.20369278,0.00043835,120]
[392063997,1761135050141,-500.0,0.00043835,120]
[392063998,1761135050150,-500.0,0.00043835,120]
[392063999,1761135050159,-500.0,0.00043835,120]
[392064000,1761135050169,-500.0,0.00043835,120]
[392064001,1761135050178,-500.0,0.00043835,120]
[392064002,1761135050187,-1001.47,0.00043835,120]
[392064003,1761135050197,-500.0,0.00043835,120]
[392064004,1761135050206,-500.0,0.00043835,120]
[392064005,1761135050215,-501.14729152,0.00043835,120]
[392064006,1761135050224,-500.0,0.00043835,120]
[392064007,1761135050329,-500.0,0.00043835,120]
[392064008,1761135050339,-511.56039455,0.00043835,120]
[392064009,1761135050348,-500.0,0.00043835,120]
[392064010,1761135050357,-525.70818251,0.00043835,120]
[392064011,1761135050366,-504.93018944,0.00043835,120]
[392064012,1761135050375,-522.68812279,0.00043835,120]
[392064013,1761135050388,-500.0,0.00043835,120]
[392064014,1761135050399,-511.15993329,0.00043835,120]
[392064015,1761135050408,-500.0,0.00043835,120]
[392064016,1761135050418,-515.55478573,0.00043835,120]
[392064017,1761135050427,-300.0,0.00043835,2]
[392064018,1761135050438,-508.72601981,0.00043835,120]
[392064019,1761135050449,-500.0,0.00043835,120]
[392064020,1761135050458,-507.56,0.00043835,120]
[392064021,1761135050467,-530.55799366,0.00043835,120]
[392064022,1761135050477,-521.0594368,0.00043835,120]
[392064023,1761135050487,-657.01,0.00043835,120]
[392064024,1761135050499,-502.74496846,0.00043835,120]
[392064025,1761135050509,-314.08867042,0.00043835,120]
[392064026,1761135050519,-500.0,0.00043835,120]
[392064027,1761135050529,-557.3020898,0.00043835,120]
[392064028,1761135050539,-501.4931879,0.00043835,100]
[392064029,1761135050549,-515.65637164,0.00043835,120]
[392064030,1761135050558,-500.0,0.00043835,120]
[392064031,1761135050567,-500.0,0.00043835,120]
[392064032,1761135050576,-501.80751424,0.00043835,120]
[392064033,1761135050586,-500.0,0.00043835,120]
[392064034,1761135050596,-500.0,0.00043835,120]
[392064035,1761135050605,-502.97747389,0.00043835,120]
[392064036,1761135050615,-506.04185071,0.00043835,120]
[392064037,1761135050624,-500.0,0.00043835,120]
[392064038,1761135050633,-500.0,0.00043835,120]
[392064039,1761135050643,-513.19842259,0.00043835,120]
[392064040,1761135050652,-500.0,0.00043835,120]
[392064041,1761135050661,-523.03142001,0.00043835,120]
[392064042,1761135050670,-500.0,0.00043835,120]
[392064043,1761135050679,-503.98597539,0.00043835,120]
[392064044,1761135050689,-163.59497094,0.00043835,120]
[392064045,1761135050699,-500.0,0.00043835,120]
[392064046,1761135050713,-531.77356131,0.00043835,120]
[392064047,1761135050723,-296.25925744,0.00043835,120]
[392064048,1761135050732,-505.99505646,0.00043835,120]
[392064049,1761135050742,-500.0,0.00043835,120]
[392064050,1761135050751,-975.57,0.00043835,120]
[392064051,1761135050760,-500.0,0.00043835,120]
[392064052,1761135050769,-500.0,0.00043835,120]
[392064053,1761135050779,-500.0,0.00043835,120]
[392064054,1761135050788,-516.36832189,0.00043835,120]
[392064055,1761135050797,-506.30106765,0.00043835,120]
[392064056,1761135050807,-500.0,0.00043835,120]
[392064057,1761135050816,-506.95823158,0.00043835,120]
[392064058,1761135050826,-522.64445716,0.00043835,120]
[392064059,1761135050837,-507.27109088,0.00043835,120]
[392064060,1761135050846,-500.0,0.00043835,120]
[392064061,1761135050855,-500.0,0.00043835,120]
[392064062,1761135050864,-500.0,0.00043835,120]
[392064063,1761135050874,-506.23404773,0.00043835,120]
[392064064,1761135050884,-500.0,0.00043835,120]
[392064065,1761135050893,-523.57354214,0.00043835,120]
[392064066,1761135050905,-824.85,0.00043835,120]
[392064067,1761135050915,-500.0,0.00043835,120]
[392064068,1761135050926,-397.12647058,0.00043835,120]
[392064069,1761135050935,-500.0,0.00043835,120]
[392064070,1761135050946,-500.0,0.00043835,120]
[392064071,1761135050956,-552.14159771,0.00043835,120]
[392064072,1761135050966,-500.0,0.00043835,120]
[392064073,1761135050975,-500.0,0.00043835,120]
[392064074,1761135050987,-500.0,0.00043835,120]
[392064075,1761135050998,-500.0,0.00043835,120]
[392064076,1761135051008,-500.0,0.00043835,120]
[392064077,1761135051017,-511.91450878,0.00043835,120]
[392064078,1761135051029,-500.0,0.00043835,30]
[392064079,1761135051038,-500.0,0.00043835,120]
[392064080,1761135051047,-500.0,0.00043835,120]
[392064081,1761135051057,-500.0,0.00043835,120]
[392064082,1761135051066,-504.75278531,0.00043835,120]
[392064083,1761135051075,-500.0,0.00043835,120]
[392064084,1761135051084,-500.0,0.00043835,120]
[392064085,1761135051093,-517.89906505,0.00043835,120]
[392064086,1761135051103,-509.99629819,0.00043835,120]
[392064087,1761135051112,-500.0,0.00043835,120]
[392064088,1761135051122,-500.0,0.00043835,120]
[392064089,1761135051131,-500.0,0.00043835,120]
[392064090,1761135051140,-500.0,0.00043835,120]
[392064091,1761135051150,-592.56100663,0.00043835,120]
[392064092,1761135051159,-508.7675181,0.00043835,120]
[392064093,1761135051168,-500.0,0.00043835,120]
[392064094,1761135051177,-500.0,0.00043835,120]
[392064095,1761135051186,-411.81656186,0.00043835,120]
[392064096,1761135051195,-500.0,0.00043835,120]
[392064097,1761135051204,-500.0,0.00043835,120]
[392064098,1761135051213,-510.93028809,0.00043835,120]
[392064099,1761135051223,-608.0241132,0.00043835,120]
[392064100,1761135051232,-500.0,0.00043835,14]
[392064101,1761135051242,-500.0,0.00043835,120]
[392064102,1761135051251,-282.74014428,0.00043835,120]
[392064103,1761135051261,-500.0,0.00043835,120]
[392064104,1761135051270,-500.0,0.00043835,120]
[392064105,1761135051279,-500.0,0.00043835,120]
[392064106,1761135051289,-506.38395736,0.00043835,120]
[392064107,1761135051298,-500.0,0.00043835,120]
[392064108,1761135051307,-505.64421567,0.00043835,120]
[392064109,1761135051318,-500.0,0.00043835,120]
[392064110,1761135051331,-500.0,0.00043835,120]
[392064111,1761135051341,-589.11393809,0.00043835,120]
[392064112,1761135051351,-505.95648879,0.00043835,120]
[392064113,1761135051361,-539.29062905,0.00043835,120]
[392064114,1761135051370,-506.9284611,0.00043835,120]
[392064115,1761135051379,-500.0,0.00043835,120]
[392064116,1761135051388,-508.46386313,0.00043835,120]
[392064117,1761135051398,-499.58870098,0.00043835,120]
[392064118,1761135051407,-518.35213056,0.00043835,120]
[392064119,1761135051416,-500.0,0.00043835,120]
[392064120,1761135051425,-500.0,0.00043835,120]
[392064121,1761135051434,-504.81963158,0.00043835,120]
[392064122,1761135051443,-393.17552844,0.00043835,120]
[392064123,1761135051452,-1000.0,0.00043835,120]
[392064124,1761135051462,-509.41272043,0.00043835,120]
[392064125,1761135051471,-500.0,0.00043835,120]
[392064126,1761135051480,-500.0,0.00043835,120]
[392064127,1761135051490,-500.0,0.00043835,120]
[392064128,1761135051499,-500.0,0.00043835,120]
[392064129,1761135051508,-506.77092243,0.00043835,120]
[392064130,1761135051518,-500.0,0.00043835,120]
[392064131,1761135051527,-553.52308014,0.00043835,120]
[392064132,1761135051537,-500.0,0.00043835,120]
[392064133,1761135051546,-508.61,0.00043835,120]
[392064134,1761135051555,-500.0,0.00043835,120]
[392064135,1761135051564,-500.0,0.00043835,120]
[392064136,1761135051575,-522.4,0.00043835,120]
[392064137,1761135051585,-512.6840933,0.00043835,120]
[392064138,1761135051594,-516.0780715,0.00043835,120]
[392064139,1761135051604,-500.0,0.00043835,120]
[392064140,1761135051613,-500.0,0.00043835,120]
[392064141,1761135051623,-500.0,0.00043835,120]
[392064142,1761135051632,-514.04409643,0.00043835,120]
[392064143,1761135051641,-500.0,0.00043835,120]
[392064144,1761135051650,-500.0,0.00043835,120]
[392064145,1761135051659,-505.13569742,0.00043835,120]
[392064146,1761135051668,-507.84907346,0.00043835,120]
[392064147,1761135051678,-508.22035574,0.00043835,120]
[392064148,1761135051688,-512.69085835,0.00043835,120]
[392064149,1761135051698,-500.0,0.00043835,120]
[392064150,1761135051707,-500.0,0.00043835,120]
[392064151,1761135051716,-500.0,0.00043835,120]
[392064152,1761135051725,-523.48,0.00043835,120]
[392064153,1761135051735,-502.96340765,0.00043835,120]
[392064154,1761135051745,-560.31136898,0.00043835,120]
[392064155,1761135051754,-504.083891,0.00043835,120]
[392064156,1761135051858,-509.32957012,0.00043835,120]
[392064157,1761135051867,-501.21100855,0.00043835,120]
[392064158,1761135051877,-533.67708191,0.00043835,120]
[392064159,1761135051887,-500.0,0.00043835,120]
[392064160,1761135051897,-500.0,0.00043835,120]
[392064161,1761135051910,-500.0,0.00043835,120]
[392064162,1761135051921,-1938.64,0.00043835,120]
[392064163,1761135051931,-500.0,0.00043835,120]
[392064164,1761135051940,-500.0,0.00043835,120]
[392064165,1761135051949,-500.0,0.00043835,120]
[392064166,1761135051958,-509.75916866,0.00043835,120]
[392064167,1761135051967,-500.68236038,0.00043835,120]
[392064168,1761135051978,-536.69185579,0.00043835,120]
[392064169,1761135051988,-500.0,0.00043835,120]
[392064170,1761135051997,-509.60201842,0.00043835,120]
[392064171,1761135052006,-634.10302962,0.00043835,120]
[392064172,1761135052015,-500.0,0.00043835,120]
[392064173,1761135052025,-1092.13,0.00043835,120]
[392064174,1761135052034,-541.07350245,0.00043835,120]
[392064175,1761135052044,-500.0,0.00043835,120]
[392064176,1761135052055,-500.0,0.00043835,120]
[392064177,1761135052064,-223.01939834,0.00043835,120]
[392064178,1761135052073,-526.19993667,0.00043835,120]
[392064179,1761135052083,-502.33106282,0.00043835,120]
[392064180,1761135052092,-509.25168221,0.00043835,120]
[392064181,1761135052101,-509.42196629,0.00043835,120]
[392064182,1761135052110,-606.36779547,0.00043835,120]
[392064183,1761135052120,-503.46759075,0.00043835,120]
[392064184,1761135052130,-500.0,0.00043835,120]
[392064185,1761135052140,-219.48241369,0.00043835,120]
[392064186,1761135052150,-511.08269924,0.00043835,120]
[392064187,1761135052160,-501.89637045,0.00043835,14]
[392064188,1761135052171,-500.0,0.00043835,120]
[392064189,1761135052181,-557.34505177,0.00043835,120]
[392064190,1761135052191,-500.0,0.00043835,120]
[392064191,1761135052200,-508.83933453,0.00043835,120]
[392064192,1761135052210,-500.0,0.00043835,120]
[392064193,1761135052220,-1064.25,0.00043835,120]
[392064194,1761135052229,-500.0,0.00043835,120]
[392064195,1761135052241,-511.0986089,0.00043835,120]
[392064196,1761135052250,-408.72500307,0.00043835,120]
[392064197,1761135052259,-559.55462596,0.00043835,120]
[392064198,1761135052268,-509.59733765,0.00043835,120]
[392064199,1761135052277,-500.0,0.00043835,120]
[392064200,1761135052286,-298.81002861,0.00043835,120]
[392064201,1761135052295,-504.95480939,0.00043835,120]
[392064202,1761135052303,-512.19556955,0.00043835,120]
[392064203,1761135052313,-502.35512583,0.00043835,120]
[392064204,1761135052324,-542.56367871,0.00043835,120]
[392064205,1761135052334,-500.0,0.00043835,120]
[392064206,1761135052344,-503.76656609,0.00043835,120]
[392064207,1761135052353,-297.58813074,0.00043835,120]
[392064208,1761135052362,-511.17830549,0.00043835,120]
[392064209,1761135052371,-557.37238427,0.00043835,120]
[392064210,1761135052381,-500.0,0.00043835,30]
[392064211,1761135052391,-619.07474474,0.00043835,120]
[392064212,1761135052400,-500.0,0.00043835,120]
[392064213,1761135052409,-1371.97,0.00043835,120]
[392064214,1761135052419,-564.28854655,0.00043835,120]
[392064215,1761135052434,-500.0,0.00043835,60]
[392064216,1761135052445,-511.45847393,0.00043835,120]
[392064217,1761135052454,-243.25537774,0.00043835,120]
[392064218,1761135052464,-548.65570409,0.00043835,120]
[392064219,1761135052474,-500.0,0.00043835,120]
[392064220,1761135052483,-500.0,0.00043835,120]
[392064221,1761135052492,-525.79706564,0.00043835,120]
[392064222,1761135052502,-500.0,0.00043835,120]
[392064223,1761135052511,-547.02678886,0.00043835,120]
[392064224,1761135052524,-400.53709648,0.00043835,120]
[392064225,1761135052544,-500.0,0.00043835,120]
[392064226,1761135052561,-511.39931591,0.00043835,120]
[392064227,1761135052580,-500.0,0.00043835,120]
[392064228,1761135052598,-547.05791291,0.00043835,120]
[392064229,1761135052613,-1398.45,0.00043835,120]
[392064230,1761135052631,-560.07283084,0.00043835,120]
[392064231,1761135052650,-510.04607237,0.00043835,120]
[392064232,1761135052669,-524.89861001,0.00043835,120]
[392064233,1761135052687,-1363.81,0.00043835,120]
[392064234,1761135052703,-500.0,0.00043835,120]
[392064235,1761135052721,-500.0,0.00043835,120]
[392064236,1761135052737,-506.33856176,0.00043835,120]
[392064237,1761135052752,-503.9681179,0.00043835,120]
[392064238,1761135052769,-500.68053786,0.00043835,120]
[392064239,1761135052782,-500.0,0.00043835,120]
[392064240,1761135052799,-461.58022605,0.00043835,120]
[392064241,1761135052812,-615.43341934,0.00043835,120]
[392064242,1761135052826,-524.22143616,0.00043835,120]
[392064243,1761135052840,-500.0,0.00043835,120]
[392064244,1761135052855,-501.21690092,0.00043835,120]
[392064245,1761135052869,-500.0,0.00043835,120]
[392064246,1761135052883,-506.62933868,0.00043835,120]
[392064247,1761135052898,-549.96861634,0.00043835,120]
[392064248,1761135052914,-1292.65,0.00043835,120]
[392064249,1761135052928,-500.0,0.00043835,120]
[392064250,1761135052942,-500.0,0.00043835,120]
[392064251,1761135052957,-519.39742862,0.00043835,120]
[392064252,1761135052972,-362.80774297,0.00043835,120]
[392064253,1761135052985,-500.0,0.00043835,120]
[392064254,1761135052999,-500.0,0.00043835,60]
[392064255,1761135053013,-500.0,0.00043835,120]
[392064256,1761135053028,-508.53976837,0.00043835,120]
[392064257,1761135053042,-507.33431278,0.00043835,120]
[392064258,1761135053057,-500.0,0.00043835,120]
[392064259,1761135053074,-500.0,0.00043835,120]
[392064260,1761135053088,-505.30566227,0.00043835,120]
[392064261,1761135053104,-500.0,0.00043835,60]
[392064262,1761135053119,-508.63623957,0.00043835,120]
[392064263,1761135053134,-522.78048529,0.00043835,120]
[392064264,1761135053150,-507.87146882,0.00043835,120]
[392064265,1761135053165,-506.09660616,0.00043835,120]
[392064266,1761135053180,-508.15877292,0.00043835,120]
[392064267,1761135053194,-500.0,0.00043835,120]
[392064268,1761135053209,-500.0,0.00043835,120]
[392064269,1761135053224,-500.0,0.00043835,120]
[392064270,1761135053239,-500.0,0.00043835,120]
[392064271,1761135053254,-500.0,0.00043835,120]
[392064272,1761135053268,-648.26132748,0.00043835,120]
[392064273,1761135053283,-500.0,0.00043835,120]
[392064274,1761135053298,-500.0,0.00043835,120]
[392064275,1761135053314,-500.0,0.00043835,120]
[392064276,1761135053328,-500.0,0.00043835,120]
[392064277,1761135053344,-500.0,0.00043835,120]
[392064278,1761135053358,-511.74418771,0.00043835,120]
[392064279,1761135053373,-510.74085419,0.00043835,120]
[392064280,1761135053388,-500.0,0.00043835,120]
[392064281,1761135053404,-500.0,0.00043835,120]
[392064282,1761135053419,-504.1449882,0.00043835,120]
[392064283,1761135053434,-507.99716124,0.00043835,120]
[392064284,1761135053448,-500.0,0.00043835,120]
[392064285,1761135053463,-526.13231294,0.00043835,120]
[392064286,1761135053478,-500.0,0.00043835,120]
[392064287,1761135053492,-500.0,0.00043835,120]
[392064288,1761135053507,-519.69568041,0.00043835,120]
[392064289,1761135053523,-525.79203732,0.00043835,120]
[392064290,1761135053539,-502.69554006,0.00043835,120]
[392064291,1761135053550,-511.53620062,0.00043835,120]
[392064292,1761135053559,-500.0,0.00043835,120]
[392064293,1761135053738,-500.0,0.00043835,120]
[392064294,1761135053764,-506.94753795,0.00043835,120]
[392064295,1761135053774,-506.96271955,0.00043835,120]
[392064296,1761135053784,-500.0,0.00043835,120]
[392064297,1761135053794,-507.41906742,0.00043835,120]
[392064298,1761135053804,-500.0,0.00043835,120]
[392064299,1761135053814,-311.03454233,0.00043835,120]
[392064300,1761135053824,-233.09641359,0.00043835,60]
[392064301,1761135053834,-524.75811781,0.00043835,120]
[392064302,1761135053844,-502.97422167,0.00043835,120]
[392064303,1761135053855,-500.0,0.00043835,120]
[392064304,1761135053865,-528.75925394,0.00043835,120]
[392064305,1761135053875,-509.27979862,0.00043835,120]
[392064306,1761135053884,-556.84259295,0.00043835,120]
[392064307,1761135053894,-500.0,0.00043835,120]
[392064308,1761135053906,-500.45506342,0.00043835,120]
[392064309,1761135053916,-500.0,0.00043835,120]
[392064310,1761135053925,-490.55745967,0.00043835,120]
[392064311,1761135053935,-500.0,0.00043835,120]
[392064312,1761135053945,-500.0,0.00043835,120]
[392064313,1761135053954,-505.26042846,0.00043835,120]
[392064314,1761135053964,-500.0,0.00043835,120]
[392064315,1761135053974,-502.27172177,0.00043835,120]
[392064316,1761135053986,-500.94308516,0.00043835,120]
[392064317,1761135053995,-508.43572326,0.00043835,120]
[392064318,1761135054005,-649.18730776,0.00043835,120]
[392064319,1761135054014,-508.19579653,0.00043835,120]
[392064320,1761135054024,-500.0,0.00043835,120]
[392064321,1761135054033,-500.0,0.00043835,120]
[392064322,1761135054043,-510.49074746,0.00043835,120]
[392064323,1761135054052,-592.57148571,0.00043835,120]
[392064324,1761135054062,-500.0,0.00043835,120]
[392064325,1761135054070,-500.0,0.00043835,120]
[392064326,1761135054080,-519.4096955,0.00043835,120]
[392064327,1761135054090,-500.0,0.00043835,120]
[392064328,1761135054099,-500.0,0.00043835,120]
[392064329,1761135054109,-500.0,0.00043835,120]
[392064330,1761135054119,-515.67,0.00043835,120]
[392064331,1761135054128,-501.8737996,0.00043835,120]
[392064332,1761135054137,-2087.85,0.00043835,120]
[392064333,1761135054147,-520.32888948,0.00043835,120]
[392064334,1761135054157,-504.75241773,0.00043835,120]
[392064335,1761135054167,-559.98893019,0.00043835,120]
[392064336,1761135054176,-500.0,0.00043835,120]
[392064337,1761135054185,-500.0,0.00043835,120]
[392064338,1761135054195,-290.117368,0.00043835,120]
[392064339,1761135054203,-537.72630482,0.00043835,120]
[392064340,1761135054213,-615.84606646,0.00043835,120]
[392064341,1761135054223,-500.0,0.00043835,120]
[392064342,1761135054232,-500.0,0.00043835,120]
[392064343,1761135054242,-500.0,0.00043835,120]
[392064344,1761135054251,-506.00044609,0.00043835,120]
[392064345,1761135054261,-500.97790397,0.00043835,120]
[392064346,1761135054271,-598.59371992,0.00043835,120]
[392064347,1761135054280,-503.52052329,0.00043835,120]
[392064348,1761135054290,-505.24709882,0.00043835,120]
[392064349,1761135054299,-500.0,0.00043835,120]
[392064350,1761135054309,-500.0,0.00043835,120]
[392064351,1761135054319,-508.2530237,0.00043835,120]
[392064352,1761135054328,-508.65570409,0.00043835,120]
[392064353,1761135054338,-171.7966278,0.00043835,120]
[392064354,1761135054348,-506.31208948,0.00043835,120]
[392064355,1761135054358,-500.79446541,0.00043835,120]
[392064356,1761135054368,-537.39080723,0.00043835,120]
[392064357,1761135054378,-502.14432295,0.00043835,120]
[392064358,1761135054388,-500.0,0.00043835,120]
[392064359,1761135054397,-500.93375911,0.00043835,120]
[392064360,1761135054408,-500.0,0.00043835,120]
[392064361,1761135054418,-500.0,0.00043835,120]
[392064362,1761135054428,-502.50664072,0.00043835,120]
[392064363,1761135054438,-885.58,0.00043835,120]
[392064364,1761135054447,-500.0,0.00043835,120]
[392064365,1761135054457,-519.68167641,0.00043835,120]
[392064366,1761135054466,-1941.76,0.00043835,120]
[392064367,1761135054475,-500.0,0.00043835,120]
[392064368,1761135054484,-500.0,0.00043835,120]
[392064369,1761135054494,-501.77133782,0.00043835,120]
[392064370,1761135054504,-500.0,0.00043835,120]
[392064371,1761135054513,-506.8533987,0.00043835,120]
[392064372,1761135054523,-348.88605347,0.00043835,120]
[392064373,1761135054532,-527.98514177,0.00043835,120]
[392064374,1761135054541,-507.19361392,0.00043835,120]
[392064375,1761135054551,-500.0,0.00043835,120]
[392064376,1761135054559,-500.0,0.00043835,120]
[392064377,1761135054569,-507.10280406,0.00043835,120]
[392064378,1761135054578,-501.19793312,0.00043835,120]
[392064379,1761135054587,-1851.65,0.00043835,60]
[392064380,1761135054597,-500.0,0.00043835,120]
[392064381,1761135054607,-500.0,0.00043835,120]
[392064382,1761135054616,-500.0,0.00043835,120]
[392064383,1761135054628,-500.0,0.00043835,120]
[392064384,1761135054637,-518.96530961,0.00043835,120]
[392064385,1761135054647,-500.0,0.00043835,120]
[392064386,1761135054656,-541.00098827,0.00043835,120]
[392064387,1761135054666,-500.0,0.00043835,120]
[392064388,1761135054676,-530.96321564,0.00043835,120]
[392064389,1761135054685,-500.0,0.00043835,120]
[392064390,1761135054695,-509.84306097,0.00043835,120]
[392064391,1761135054704,-510.28244526,0.00043835,120]
[392064392,1761135054715,-500.0,0.00043835,120]
[392064393,1761135054724,-500.0,0.00043835,120]
[392064394,1761135054734,-512.37146265,0.00043835,120]